bitfinex/quotes_BTCUSD_20250518
["timestamp","ask_amount","ask_price","bid_price","bid_amount"]
[1747602384647,0.0541961,104200.0,104190.0,0.44943725]
[1747602384863,0.01,104200.0,104190.0,0.44943725]
[1747602385086,0.01,104200.0,104190.0,0.54674665]
[1747602385325,0.01,104200.0,104190.0,0.56394665]
[1747602385549,0.01,104200.0,104190.0,0.92074665]
[1747602386428,0.01,104200.0,104190.0,0.9352875]
[1747602386643,0.01,104200.0,104190.0,0.9504324]
[1747602389453,0.01,104200.0,104190.0,0.9352875]
[1747602389695,0.02262573,104210.0,104200.0,0.59522824]
[1747602389911,0.02262573,104210.0,104200.0,0.89225764]
[1747602390785,0.02362573,104210.0,104200.0,0.89225764]
[1747602391521,0.02362573,104210.0,104200.0,0.90130042]
[1747602392003,0.02362573,104210.0,104200.0,0.9159279]
[1747602392698,0.02362573,104210.0,104200.0,0.8814279]
[1747602392912,0.02362573,104210.0,104200.0,0.6817079]
[1747602393132,0.02362573,104210.0,104200.0,1.0812279]
[1747602393366,0.02362573,104210.0,104200.0,1.4932279]
[1747602394452,0.02362573,104210.0,104200.0,1.5285279]
[1747602394904,0.02362573,104210.0,104200.0,1.4932279]
[1747602395092,0.02362573,104210.0,104200.0,1.0812279]
[1747602395467,0.02362573,104210.0,104200.0,1.4955479]
[1747602396118,0.02362573,104210.0,104200.0,0.9558279]
[1747602396324,0.05932573,104210.0,104200.0,1.1555079]
[1747602396526,0.05932573,104210.0,104200.0,0.7560279]
[1747602396678,0.05932573,104210.0,104200.0,0.94120042]
[1747602396886,0.04112573,104210.0,104200.0,0.94120042]
[1747602398126,0.04112573,104210.0,104200.0,0.42336278]
[1747602398127,0.25124589,104210.0,104200.0,0.42336278]
[1747602398360,0.0689209,104210.0,104200.0,0.84385102]
[1747602398612,0.05932573,104210.0,104200.0,0.84385102]
[1747602399025,0.068921,104210.0,104200.0,0.84385102]
[1747602399157,0.068921,104210.0,104200.0,0.64409102]
[1747602399373,0.068921,104210.0,104200.0,0.84385102]
[1747602399581,0.07851645,104210.0,104200.0,0.84385102]
[1747602401311,0.066521,104210.0,104200.0,0.84385102]
[1747602401524,0.07611645,104210.0,104200.0,0.84385102]
[1747602402308,0.07611645,104210.0,104200.0,0.64409102]
[1747602402545,0.07611645,104210.0,104200.0,0.84389102]
[1747602402983,0.066521,104210.0,104200.0,0.84389102]
[1747602403197,0.07611635,104210.0,104200.0,0.84389102]
[1747602403444,0.07611635,104210.0,104200.0,0.84601102]
[1747602404436,1.00934788,104210.0,104200.0,0.42336278]
[1747602404680,1.00694866,104210.0,104200.0,0.42336278]
[1747602404944,1.32103891,104210.0,104200.0,0.00904278]
[1747602405151,1.39844204,104210.0,104200.0,0.02043772]
[1747602405370,0.99953063,104210.0,104200.0,0.02043772]
[1747602405579,1.22372951,104210.0,104200.0,0.02043772]
[1747602405815,1.22272951,104210.0,104200.0,0.02043772]
[1747602406239,1.22672951,104210.0,104200.0,0.02043772]
[1747602407491,1.22672951,104210.0,104200.0,0.00904278]
[1747602408934,0.7228875,104210.0,104200.0,0.00904278]
[1747602409141,0.9248875,104210.0,104200.0,0.00904278]
[1747602409355,0.91529196,104210.0,104200.0,0.00904278]
[1747602409578,0.71329196,104210.0,104200.0,0.00904278]
[1747602410706,0.70829196,104210.0,104200.0,0.00904278]
[1747602411628,0.91033196,104210.0,104200.0,0.00904278]
[1747602413419,0.91005196,104210.0,104200.0,0.21057827]
[1747602413649,0.91005196,104210.0,104200.0,0.00904278]
[1747602414973,0.5163718,104210.0,104200.0,0.22017455]
[1747602415213,0.9291235,104210.0,104200.0,0.21057809]
[1747602415421,0.7274835,104210.0,104200.0,0.22017465]
[1747602415843,0.7274835,104210.0,104200.0,0.20098135]
[1747602416003,0.53556334,104210.0,104200.0,0.22017474]
[1747602416218,0.7274835,104210.0,104200.0,0.21113196]
[1747602416644,0.7274835,104210.0,104200.0,0.22072852]
[1747602416845,0.0645209,104210.0,104200.0,0.23992117]
[1747602417043,0.07411617,104210.0,104200.0,0.23992117]
[1747602417243,0.08371162,104210.0,104200.0,0.23992117]
[1747602417700,0.07971162,104210.0,104200.0,0.23992117]
[1747602418132,0.08171162,104210.0,104200.0,0.23992117]
[1747602418365,0.05391617,104210.0,104200.0,0.23992117]
[1747602418599,0.01722573,104210.0,104200.0,0.23992117]
[1747602418852,0.01722573,104210.0,104200.0,0.25822117]
[1747602419348,0.01722573,104210.0,104200.0,0.28582275]
[1747602419571,0.01722573,104210.0,104200.0,0.38313215]
[1747602419772,0.01522573,104210.0,104200.0,0.38313215]
[1747602420033,0.01622573,104210.0,104200.0,0.38313215]
[1747602421404,0.01622573,104210.0,104200.0,0.39832541]
[1747602421679,0.01622573,104210.0,104200.0,0.81268541]
[1747602421901,0.01622573,104210.0,104200.0,1.01436541]
[1747602423200,0.01622573,104210.0,104200.0,1.02878877]
[1747602425607,0.01622573,104210.0,104200.0,1.01028877]
[1747602426856,0.01622573,104210.0,104200.0,0.99198877]
[1747602431402,0.01622573,104210.0,104200.0,1.02055471]
[1747602432101,0.0258209,104210.0,104200.0,1.20447471]
[1747602432348,0.05202573,104210.0,104200.0,0.90628531]
[1747602432573,0.05202573,104210.0,104200.0,0.89186195]
[1747602432796,0.0616209,104210.0,104200.0,0.89186195]
[1747602433049,0.05202573,104210.0,104200.0,0.89186195]
[1747602434076,0.05202573,104210.0,104200.0,0.87666869]
[1747602435117,0.0616209,104210.0,104200.0,0.87666869]
[1747602435327,0.05202573,104210.0,104200.0,0.87594869]
[1747602436000,0.07121654,104210.0,104200.0,0.87594869]
[1747602436721,0.07121654,104210.0,104200.0,0.86458275]
[1747602436894,0.05202573,104210.0,104200.0,0.86458275]
[1747602437132,0.061621,104210.0,104200.0,0.86458275]
[1747602438263,0.07121636,104210.0,104200.0,0.86458275]
[1747602438485,0.0808119,104210.0,104200.0,0.86458275]
[1747602438706,0.07121636,104210.0,104200.0,0.86458275]
[1747602439125,0.0616209,104210.0,104200.0,0.86458275]
[1747602439343,0.07121626,104210.0,104200.0,0.86458275]
[1747602439770,0.07121617,104210.0,104200.0,0.86458275]
[1747602440193,0.0616209,104210.0,104200.0,0.86458275]
[1747602440567,0.07121626,104210.0,104200.0,0.86458275]
[1747602440992,0.07121617,104210.0,104200.0,0.86458275]
[1747602442675,0.0616209,104210.0,104200.0,0.86458275]
[1747602442904,0.0616209,104210.0,104200.0,0.87594869]
[1747602444794,0.07121617,104210.0,104200.0,0.87594869]
[1747602448645,0.0616209,104210.0,104200.0,0.87594869]
[1747602449260,0.07121626,104210.0,104200.0,0.87594869]
[1747602449480,0.0616209,104210.0,104200.0,0.87594869]
[1747602451226,0.0616209,104210.0,104200.0,0.46158869]
[1747602452520,0.0616209,104210.0,104200.0,0.26038869]
[1747602452743,1.12270746,104210.0,104200.0,0.02046752]
[1747602452978,1.34895746,104210.0,104200.0,0.02046752]
[1747602453478,1.34795746,104210.0,104200.0,0.01136594]
[1747602453877,1.35195746,104210.0,104200.0,0.01136594]
[1747602454461,1.32564164,104210.0,104200.0,0.01136594]
[1747602455177,0.20155466,104190.0,104180.0,0.21238877]
[1747602455391,0.23685466,104190.0,104180.0,0.21238877]
[1747602456394,0.2462877,104190.0,104180.0,0.21238877]
[1747602457035,0.64519911,104190.0,104180.0,0.21238877]
[1747602458164,0.64519911,104190.0,104180.0,0.20328719]
[1747602458374,0.3435971,104190.0,104180.0,0.20328719]
[1747602459134,1.58489574,104190.0,104180.0,0.00204719]
[1747602459360,1.50118197,104190.0,104180.0,0.00204719]
[1747602460483,1.50218197,104190.0,104180.0,0.00204719]
[1747602461137,1.50718197,104190.0,104180.0,0.00204719]
[1747602462916,0.90397795,104190.0,104180.0,0.00204719]
[1747602463130,1.53599997,104190.0,104180.0,0.00204719]
[1747602464777,2.32110937,104190.0,104180.0,0.00204719]
[1747602465041,2.34110937,104190.0,104180.0,0.00204719]
[1747602465660,2.37024104,104190.0,104180.0,0.00204719]
[1747602465882,2.27293164,104190.0,104180.0,0.00204719]
[1747602471630,2.06309164,104190.0,104180.0,0.00204719]
[1747602471852,1.72235796,104190.0,104180.0,0.00204719]
[1747602472036,1.73235796,104190.0,104180.0,0.00204719]
[1747602472331,1.93247796,104190.0,104180.0,0.00204719]
[1747602472517,1.73235796,104190.0,104180.0,0.00204719]
[1747602472716,1.93247796,104190.0,104180.0,0.00204719]
[1747602473336,1.92035796,104190.0,104180.0,0.00204719]
[1747602475316,1.2352371,104190.0,104180.0,0.00204719]
[1747602475563,0.5292371,104190.0,104180.0,0.00204719]
[1747602475807,0.8692371,104190.0,104180.0,0.00204719]
[1747602478206,0.6692771,104190.0,104180.0,0.00204719]
[1747602478412,1.18759911,104190.0,104180.0,0.00204719]
[1747602479233,0.8859971,104190.0,104180.0,0.00204719]
[1747602480718,0.6860771,104190.0,104180.0,0.00204719]
[1747602480928,0.8859971,104190.0,104180.0,0.00204719]
[1747602481362,0.8691971,104190.0,104180.0,0.00204719]
[1747602481793,0.86169467,104190.0,104180.0,0.20362138]
[1747602482009,0.8520971,104190.0,104180.0,0.01164596]
[1747602482222,0.84249944,104190.0,104180.0,0.20362138]
[1747602482471,0.84293944,104190.0,104180.0,0.21156596]
[1747602482674,0.84193944,104190.0,104180.0,0.21156596]
[1747602482893,0.83693944,104190.0,104180.0,0.20196719]
[1747602483103,0.85493944,104190.0,104180.0,0.20196719]
[1747602483285,0.85893944,104190.0,104180.0,0.21108294]
[1747602483492,0.85893944,104190.0,104180.0,0.22068171]
[1747602483926,0.85893944,104190.0,104180.0,0.4222558]
[1747602484129,0.85893944,104190.0,104180.0,0.43185438]
[1747602484291,0.85893944,104190.0,104180.0,0.4222558]
[1747602486385,0.85893944,104190.0,104180.0,0.43185429]
[1747602486600,0.6511771,104190.0,104180.0,0.451051]
[1747602486815,0.6511771,104190.0,104180.0,0.45105044]
[1747602487028,0.6511771,104190.0,104180.0,0.44145223]
[1747602487645,0.46693748,104190.0,104180.0,0.44145223]
[1747602487865,0.47653523,104190.0,104180.0,0.45105044]
[1747602488075,0.50473308,104190.0,104180.0,0.43185392]
[1747602488297,0.50373308,104190.0,104180.0,0.45105044]
[1747602488530,0.48713308,104190.0,104180.0,0.45105044]
[1747602488756,0.46893693,104190.0,104180.0,0.46884989]
[1747602488974,0.003,104190.0,104180.0,0.48654989]
[1747602489194,0.003,104190.0,104180.0,0.49625936]
[1747602489413,0.01259702,104190.0,104180.0,0.48654989]
[1747602489836,0.003,104190.0,104180.0,0.48654989]
[1747602490973,0.003,104190.0,104180.0,0.50070222]
[1747602491153,0.003,104190.0,104180.0,0.59801162]
[1747602491398,0.002,104190.0,104180.0,0.59801162]
[1747602491624,0.002,104190.0,104180.0,0.61320488]
[1747602492277,0.07287075,104210.0,104200.0,0.22072814]
[1747602492540,0.07287075,104210.0,104200.0,0.42064814]
[1747602492771,0.25519546,104210.0,104200.0,0.42016752]
[1747602493444,0.25919546,104210.0,104200.0,0.42016752]
[1747602493924,0.24952925,104210.0,104200.0,0.42976389]
[1747602494138,0.04801309,104210.0,104200.0,0.42976389]
[1747602494378,0.05760909,104210.0,104200.0,0.42976389]
[1747602494827,0.05860909,104210.0,104200.0,0.42976389]
[1747602495036,0.25052925,104210.0,104200.0,0.42016752]
[1747602495700,0.25052925,104210.0,104200.0,0.42976389]
[1747602496520,0.25052925,104210.0,104200.0,0.42016752]
[1747602496740,0.24093362,104210.0,104200.0,0.42016752]
[1747602497157,0.24093362,104210.0,104200.0,0.41105177]
[1747602497383,0.25753362,104210.0,104200.0,0.41105177]
[1747602497650,0.2479378,104210.0,104200.0,0.41105196]
[1747602498196,0.2479378,104210.0,104200.0,0.42064852]
[1747602499223,0.23834189,104210.0,104200.0,0.41105196]
[1747602499649,0.22174189,104210.0,104200.0,0.42064852]
[1747602499854,0.22174189,104210.0,104200.0,0.43024498]
[1747602500997,0.22174189,104210.0,104200.0,0.42064852]
[1747602501430,0.22174189,104210.0,104200.0,0.42974245]
[1747602502092,0.22174189,104210.0,104200.0,0.42974235]
[1747602504595,0.22174189,104210.0,104200.0,0.44784235]
[1747602504801,0.22174189,104210.0,104200.0,0.43933872]
[1747602506176,0.23914189,104210.0,104200.0,0.43933872]
[1747602508020,0.22174189,104210.0,104200.0,0.43933872]
[1747602508481,0.04901226,104210.0,104200.0,0.448935]
[1747602508709,0.03941644,104210.0,104200.0,0.466435]
[1747602508905,0.04901189,104210.0,104200.0,0.466435]
[1747602509166,0.05860771,104210.0,104200.0,0.448935]
[1747602509387,0.04901189,104210.0,104200.0,0.448935]
[1747602509627,0.06820343,104210.0,104200.0,0.466335]
[1747602509851,0.05860752,104210.0,104200.0,0.466335]
[1747602510078,0.06820334,104210.0,104200.0,0.466335]
[1747602510351,0.06820334,104210.0,104200.0,0.448935]
[1747602511405,0.06820325,104210.0,104200.0,0.448935]
[1747602511611,0.05860808,104210.0,104200.0,0.448935]
[1747602511822,0.05860808,104210.0,104200.0,0.466635]
[1747602512272,0.0682039,104210.0,104200.0,0.448935]
[1747602512489,0.0850039,104210.0,104200.0,0.448935]
[1747602513158,0.07540808,104210.0,104200.0,0.448935]
[1747602513599,0.08500436,104210.0,104200.0,0.448935]
[1747602514050,0.09190845,104210.0,104200.0,0.448935]
[1747602514930,0.06581263,104210.0,104200.0,0.448935]
[1747602515899,0.05621654,104210.0,104200.0,0.448935]
[1747602516284,0.06581236,104210.0,104200.0,0.448935]
[1747602516500,0.07540799,104210.0,104200.0,0.448935]
[1747602517633,0.26732815,104210.0,104200.0,0.42974245]
[1747602517852,0.1022039,104210.0,104200.0,0.43933882]
[1747602518107,0.10220463,104210.0,104200.0,0.4489351]
[1747602518348,0.09260863,104210.0,104200.0,0.43933882]
[1747602518556,0.09260863,104210.0,104200.0,0.4489351]
[1747602519211,0.03941636,104210.0,104200.0,0.4489351]
[1747602519440,0.02022573,104210.0,104200.0,0.49440179]
[1747602519660,0.02022573,104210.0,104200.0,0.59171119]
[1747602520323,0.01622573,104210.0,104200.0,0.59171119]
[1747602520583,0.01522573,104210.0,104200.0,0.59171119]
[1747602522135,4e-05,104220.0,104210.0,0.22070706]
[1747602522316,4e-05,104220.0,104210.0,0.25480706]
[1747602523565,0.00204,104220.0,104210.0,0.27908788]
[1747602523774,0.00204,104220.0,104210.0,0.26238788]
[1747602523999,0.02973435,104220.0,104210.0,0.44562788]
[1747602524221,0.02014,104220.0,104210.0,0.44562788]
[1747602524445,0.02222869,104220.0,104210.0,0.44558788]
[1747602524860,0.01263425,104220.0,104210.0,0.44558788]
[1747602525319,0.01263425,104220.0,104210.0,0.46338788]
[1747602526469,0.00304,104220.0,104210.0,0.46338788]
[1747602526882,0.01263425,104220.0,104210.0,0.46338788]
[1747602527061,0.01263425,104220.0,104210.0,0.44558788]
[1747602527507,0.00304,104220.0,104210.0,0.44558788]
[1747602527947,0.02222878,104220.0,104210.0,0.44558788]
[1747602528215,0.02222878,104220.0,104210.0,0.43863252]
[1747602528216,0.07561867,104220.0,104210.0,0.43863252]
[1747602528428,0.05642878,104220.0,104210.0,0.43863252]
[1747602528644,0.0756183,104220.0,104210.0,0.44822788]
[1747602528888,0.08521329,104220.0,104210.0,0.44442522]
[1747602529119,0.34564103,104220.0,104210.0,0.02047807]
[1747602529354,0.34564103,104220.0,104210.0,0.43483014]
[1747602529540,0.34564103,104220.0,104210.0,0.02047807]
[1747602529923,0.34564103,104220.0,104210.0,0.03007407]
[1747602531046,0.39564103,104220.0,104210.0,0.03966998]
[1747602531451,0.38604613,104220.0,104210.0,0.03007407]
[1747602531645,0.38604613,104220.0,104210.0,0.22199423]
[1747602531854,0.38604613,104220.0,104210.0,0.21061009]
[1747602532972,0.38604613,104220.0,104210.0,0.01868993]
[1747602533158,0.38604613,104220.0,104210.0,0.00909393]
[1747602533436,1.04218899,104220.0,104210.0,0.00909393]
[1747602533630,1.24598899,104220.0,104210.0,0.00909393]
[1747602534798,1.24598899,104220.0,104200.0,0.01138414]
[1747602534799,0.59105683,104210.0,104200.0,0.01138414]
[1747602535017,0.68836623,104210.0,104200.0,0.01138414]
[1747602536596,0.06388939,104200.0,104190.0,0.86663611]
[1747602536820,0.06388939,104200.0,104190.0,0.86667611]
[1747602537293,0.03659238,104200.0,104190.0,0.86667611]
[1747602537758,0.37659127,104210.0,104200.0,0.22072824]
[1747602537947,0.39429127,104210.0,104200.0,0.22072824]
[1747602538163,0.41348245,104210.0,104200.0,0.22072824]
[1747602538737,0.413483,104210.0,104200.0,0.21113196]
[1747602538959,0.58898218,104210.0,104200.0,0.21113196]
[1747602539168,0.58898218,104210.0,104200.0,0.22982235]
[1747602539762,0.58898218,104210.0,104200.0,0.22022589]
[1747602539967,0.57938645,104210.0,104200.0,0.22022589]
[1747602540403,0.56979063,104210.0,104200.0,0.21062933]
[1747602540960,0.56019472,104210.0,104200.0,0.21062933]
[1747602541170,0.56019472,104210.0,104200.0,0.22982272]
[1747602541377,0.61019472,104210.0,104200.0,0.22982272]
[1747602543144,0.61979054,104210.0,104200.0,0.23941928]
[1747602543388,0.05959527,104210.0,104200.0,0.24901519]
[1747602543589,0.05,104210.0,104200.0,0.24901519]
[1747602543795,0.05959517,104210.0,104200.0,0.26651519]
[1747602543998,0.05,104210.0,104200.0,0.28451519]
[1747602544444,0.05581904,104220.0,104210.0,0.22070734]
[1747602545430,0.05581904,104220.0,104210.0,0.22980127]
[1747602545772,0.05781904,104220.0,104210.0,0.22740127]
[1747602546408,0.24972078,104220.0,104210.0,0.22740127]
[1747602546833,0.25072078,104220.0,104210.0,0.22740127]
[1747602547573,0.05881904,104220.0,104210.0,0.23699663]
[1747602547776,0.03962906,104220.0,104210.0,0.23699663]
[1747602547996,0.04141867,104220.0,104210.0,0.23699663]
[1747602548487,0.03182377,104220.0,104210.0,0.23699663]
[1747602548698,0.01263444,104220.0,104210.0,0.25369663]
[1747602549851,0.00304,104220.0,104210.0,0.25369663]
[1747602550083,0.01263435,104220.0,104210.0,0.25369663]
[1747602550295,0.00304,104220.0,104210.0,0.25369663]
[1747602550515,0.01263444,104220.0,104210.0,0.25369663]
[1747602551209,0.00304,104220.0,104210.0,0.25369663]
[1747602551638,0.00304,104220.0,104210.0,0.27089663]
[1747602555001,0.00304,104220.0,104210.0,0.29746766]
[1747602558689,0.00304,104220.0,104210.0,0.05429872]
[1747602558945,0.00304,104220.0,104210.0,0.27500597]
[1747602559217,0.00304,104220.0,104210.0,0.47780597]
[1747602559811,0.00304,104220.0,104210.0,0.48740142]
[1747602560213,0.00304,104220.0,104210.0,0.47221453]
[1747602561853,0.00304,104220.0,104210.0,0.26941453]
[1747602562065,0.00304,104220.0,104210.0,0.47217453]
[1747602562962,0.00304,104220.0,104210.0,0.45497453]
[1747602563609,0.00304,104220.0,104210.0,0.44359039]
[1747602564260,0.00304,104220.0,104210.0,0.85787039]
[1747602566071,0.00304,104220.0,104210.0,0.8473427]
[1747602566409,0.00304,104220.0,104210.0,0.85872684]
[1747602566823,0.00304,104220.0,104210.0,0.65596684]
[1747602567021,0.00304,104220.0,104210.0,0.85872684]
[1747602569696,0.00304,104220.0,104210.0,0.86252959]
[1747602574690,0.03794,104220.0,104210.0,0.65976959]
[1747602574934,0.03794,104220.0,104210.0,0.86252959]
[1747602575193,0.04753435,104220.0,104210.0,0.86252959]
[1747602575430,0.05712897,104220.0,104210.0,0.86252959]
[1747602575911,0.04753435,104220.0,104210.0,0.86252959]
[1747602576147,0.03794,104220.0,104210.0,0.86252959]
[1747602576387,0.04753435,104220.0,104210.0,0.86252959]
[1747602576625,0.03794,104220.0,104210.0,0.86252959]
[1747602576858,0.04753435,104220.0,104210.0,0.86252959]
[1747602577286,0.03794,104220.0,104210.0,0.86252959]
[1747602577765,0.04753425,104220.0,104210.0,0.86252959]
[1747602579174,0.03794,104220.0,104210.0,0.86252959]
[1747602583606,0.03794,104220.0,104210.0,0.8473427]
[1747602585600,0.00304,104220.0,104210.0,0.8473427]
[1747602586395,0.00104,104220.0,104210.0,0.8473427]
[1747602586665,4e-05,104220.0,104210.0,0.8473427]
[1747602590317,0.01694,104220.0,104210.0,0.8473427]
[1747602594360,0.03464,104220.0,104210.0,0.8473427]
[1747602594588,4e-05,104220.0,104210.0,1.3206521]
[1747602594810,4e-05,104220.0,104210.0,1.34735778]
[1747602595032,4e-05,104220.0,104210.0,1.3206521]
[1747602595250,4e-05,104220.0,104210.0,1.34735679]
[1747602595684,4e-05,104220.0,104210.0,1.34835679]
[1747602595920,0.0021,104230.0,104220.0,0.23713566]
[1747602596140,0.0021,104230.0,104220.0,0.53452506]
[1747602596835,0.0021,104230.0,104220.0,0.54363779]
[1747602597250,0.0021,104230.0,104220.0,0.54368498]
[1747602597469,0.0021,104230.0,104220.0,0.55887286]
[1747602598716,0.0021,104230.0,104220.0,0.56834263]
[1747602599524,0.0021,104230.0,104220.0,0.55315475]
[1747602603660,0.0021,104230.0,104220.0,0.54368498]
[1747602607956,0.0021,104230.0,104220.0,0.52608498]
[1747602608365,0.0021,104230.0,104220.0,0.56078498]
[1747602608946,0.0021,104230.0,104220.0,0.54328498]
[1747602609973,0.0021,104230.0,104220.0,0.52608498]
[1747602613172,0.0021,104230.0,104220.0,0.52596498]
[1747602613415,0.0021,104230.0,104220.0,0.86596498]
[1747602615682,0.0021,104230.0,104220.0,0.66600498]
[1747602615907,0.0021,104230.0,104220.0,0.86596498]
[1747602618199,0.0021,104230.0,104220.0,1.06600498]
[1747602621319,0.03464,104240.0,104230.0,0.22066471]
[1747602621532,0.03464,104240.0,104230.0,0.33777402]
[1747602622360,0.03464,104240.0,104230.0,0.34688675]
[1747602622812,0.03464,104240.0,104230.0,0.76104675]
[1747602623013,0.03764,104240.0,104230.0,0.76104675]
[1747602624526,0.03764,104240.0,104230.0,0.77621686]
[1747602624754,0.03764,104240.0,104230.0,1.17597686]
[1747602625667,0.26787642,104240.0,104230.0,0.86919404]
[1747602625896,0.05682529,104240.0,104230.0,0.67890765]
[1747602626133,0.06641835,104240.0,104230.0,0.88838117]
[1747602626370,0.06641826,104240.0,104230.0,0.88838117]
[1747602626598,0.06641835,104240.0,104230.0,0.88838117]
[1747602626816,0.04723241,104240.0,104230.0,0.88838117]
[1747602627081,0.05682501,104240.0,104230.0,0.88838117]
[1747602627303,0.06641779,104240.0,104230.0,0.88838117]
[1747602627493,0.06641779,104240.0,104230.0,0.68850117]
[1747602627645,0.07601076,104240.0,104230.0,0.88842117]
[1747602628070,0.06641779,104240.0,104230.0,0.88842117]
[1747602628272,0.07601076,104240.0,104230.0,0.88842117]
[1747602628451,0.06641779,104240.0,104230.0,0.88842117]
[1747602631132,0.05682501,104240.0,104230.0,0.88842117]
[1747602631330,0.04723241,104240.0,104230.0,0.88842117]
[1747602631757,0.05682501,104240.0,104230.0,0.88842117]
[1747602631980,0.05682492,104240.0,104230.0,0.88842117]
[1747602634083,0.03764,104240.0,104230.0,0.68850117]
[1747602634308,0.03764,104240.0,104230.0,0.88842117]
[1747602637442,0.03764,104240.0,104230.0,0.98573057]
[1747602637641,0.00304,104240.0,104230.0,0.98573057]
[1747602637798,0.02134,104240.0,104230.0,0.98573057]
[1747602638211,0.03844,104240.0,104230.0,0.98573057]
[1747602638419,0.03644,104240.0,104230.0,0.98573057]
[1747602639502,0.03544,104240.0,104230.0,0.98573057]
[1747602640711,0.03544,104240.0,104230.0,0.97056046]
[1747602643946,0.0471,104250.0,104240.0,0.22064354]
[1747602644164,0.03,104250.0,104240.0,0.51775294]
[1747602644597,0.03,104250.0,104240.0,0.52686567]
[1747602645486,0.012,104250.0,104240.0,0.52686567]
[1747602645926,0.012,104250.0,104240.0,0.86686567]
[1747602646137,0.01724,104260.0,104250.0,0.22062238]
[1747602646362,4e-05,104260.0,104250.0,0.51785178]
[1747602646842,4e-05,104260.0,104250.0,0.87615178]
[1747602647073,0.00204,104270.0,104260.0,0.57890122]
[1747602647316,0.00204,104270.0,104260.0,0.67621062]
[1747602647756,0.00204,104270.0,104260.0,0.67506084]
[1747602647968,0.00204,104270.0,104260.0,0.68417357]
[1747602648400,0.00204,104270.0,104260.0,0.70572076]
[1747602649707,0.00204,104270.0,104260.0,0.68822076]
[1747602650575,0.00204,104270.0,104260.0,0.70334093]
[1747602650697,0.00204,104270.0,104260.0,0.7129935]
[1747602650909,0.00204,104270.0,104260.0,0.6946935]
[1747602651359,0.03764,104270.0,104260.0,0.6946935]
[1747602651579,0.06641007,104270.0,104260.0,0.25853388]
[1747602651801,0.25822052,104270.0,104260.0,0.22800009]
[1747602652037,0.25822052,104270.0,104260.0,0.02828009]
[1747602652038,0.2486305,104270.0,104260.0,0.02828009]
[1747602652243,0.3459399,104270.0,104260.0,0.22800009]
[1747602652471,0.70048075,104270.0,104260.0,0.22800009]
[1747602652684,0.79779015,104270.0,104260.0,0.02828009]
[1747602652904,0.79779015,104270.0,104260.0,0.02728009]
[1747602653112,0.75048075,104270.0,104260.0,0.02728009]
[1747602653314,0.7599019,104270.0,104260.0,0.02728009]
[1747602653540,0.24663052,104250.0,104240.0,0.03020817]
[1747602653763,0.33434806,104250.0,104240.0,0.22997538]
[1747602653963,0.33434806,104250.0,104240.0,0.23956862]
[1747602654200,0.33434806,104250.0,104240.0,0.19976721]
[1747602654419,0.98994521,104250.0,104240.0,4.721e-05]
[1747602654637,0.71768791,104250.0,104240.0,4.721e-05]
[1747602655070,0.71768791,104250.0,104230.0,0.03114662]
[1747602655071,0.55599883,104240.0,104230.0,0.03114662]
[1747602655280,0.68630823,104240.0,104230.0,0.23091385]
[1747602655504,0.68630823,104240.0,104230.0,0.01139394]
[1747602655505,0.98736453,104240.0,104230.0,0.01139394]
[1747602655710,1.08467393,104240.0,104230.0,0.01139394]
[1747602655909,0.98736453,104240.0,104230.0,0.01139394]
[1747602656391,0.98736453,104240.0,104230.0,0.21287143]
[1747602656392,0.49908858,104240.0,104230.0,0.21287143]
[1747602656597,0.50868071,104240.0,104230.0,0.23205929]
[1747602656807,0.69095322,104240.0,104230.0,0.23205929]
[1747602657009,0.68136053,104240.0,104230.0,0.23205929]
[1747602657418,0.68136053,104240.0,104230.0,0.22071277]
[1747602657660,0.037,104240.0,104230.0,0.23990008]
[1747602657873,0.05659241,104240.0,104230.0,0.23990008]
[1747602658103,0.05959241,104240.0,104230.0,0.23990008]
[1747602658514,0.05,104240.0,104230.0,0.23990008]
[1747602658725,0.047,104240.0,104230.0,0.23990008]
[1747602658947,0.0304,104240.0,104230.0,0.23990008]
[1747602659793,0.0264,104240.0,104230.0,0.23990008]
[1747602659998,0.04658547,104240.0,104230.0,0.23990008]
[1747602660215,0.0551926,104240.0,104230.0,0.23990008]
[1747602660637,0.0456,104240.0,104230.0,0.43966008]
[1747602660862,0.05519251,104240.0,104230.0,0.43966008]
[1747602661066,0.0456,104240.0,104230.0,0.43966008]
[1747602661356,0.05519241,104240.0,104230.0,0.43966008]
[1747602661960,0.06478501,104240.0,104230.0,0.43966008]
[1747602662335,0.25904947,104240.0,104230.0,0.19980723]
[1747602662742,0.25665094,104240.0,104230.0,0.21111824]
[1747602662950,0.25665094,104240.0,104230.0,0.40128463]
[1747602663126,0.25665094,104240.0,104230.0,0.41087842]
[1747602665312,0.25425094,104240.0,104230.0,0.41087842]
[1747602665753,0.25425094,104240.0,104230.0,0.40128463]
[1747602665932,0.24465807,104240.0,104230.0,0.40128463]
[1747602666557,0.24465807,104240.0,104230.0,0.41087861]
[1747602667048,0.24465807,104240.0,104230.0,0.4204725]
[1747602667263,0.24465807,104240.0,104230.0,0.43006629]
[1747602667671,0.24465807,104240.0,104230.0,0.4204725]
[1747602669479,0.24465807,104240.0,104230.0,0.41087861]
[1747602670021,0.29465807,104240.0,104230.0,0.41087861]
[1747602670633,0.28506492,104240.0,104230.0,0.40128463]
[1747602671396,0.28506492,104240.0,104230.0,0.41087842]
[1747602671619,0.29465798,104240.0,104230.0,0.41087842]
[1747602671831,0.11238529,104240.0,104230.0,0.42047194]
[1747602672046,0.32343642,104240.0,104230.0,0.41087842]
[1747602672254,0.13157132,104240.0,104230.0,0.43006564]
[1747602672466,0.14116456,104240.0,104230.0,0.43006564]
[1747602672863,0.32343697,104240.0,104230.0,0.42047212]
[1747602673303,0.30425122,104240.0,104230.0,0.20940139]
[1747602673514,0.30425122,104240.0,104230.0,0.2111187]
[1747602673694,0.30425122,104240.0,104230.0,0.4108787]
[1747602674098,0.0932,104240.0,104230.0,0.43006601]
[1747602674307,0.07159251,104240.0,104230.0,0.43006601]
[1747602674530,0.062,104240.0,104230.0,0.43006601]
[1747602674939,0.062,104240.0,104230.0,0.44516601]
[1747602675152,0.011,104240.0,104230.0,0.44516601]
[1747602675381,0.011,104240.0,104230.0,0.64492601]
[1747602676036,0.01,104240.0,104230.0,0.64492601]
[1747602676248,0.01,104240.0,104230.0,1.10760502]
[1747602676912,0.01,104240.0,104230.0,1.09130502]
[1747602677734,0.01,104240.0,104230.0,1.09430502]
[1747602677970,0.01,104240.0,104230.0,1.09730502]
[1747602680453,0.01,104240.0,104230.0,0.69778502]
[1747602680668,0.01,104240.0,104230.0,1.09726502]
[1747602683384,0.01,104240.0,104230.0,0.69778502]
[1747602683612,0.01,104240.0,104230.0,1.09726502]
[1747602684709,0.01,104240.0,104230.0,1.09722502]
[1747602685456,0.01959241,104240.0,104230.0,0.44509562]
[1747602685672,0.05179241,104240.0,104230.0,0.64481562]
[1747602686024,0.0422,104240.0,104230.0,0.64481562]